bitfinex/quotes_BTCUSD_20240828
["timestamp","ask_amount","ask_price","bid_price","bid_amount"]
[1724870894154,2.57381175,59017.0,59016.0,0.0008998]
[1724870894388,2.57181175,59017.0,59016.0,0.0008998]
[1724870894605,2.65883896,59017.0,59016.0,0.0008998]
[1724870894837,2.67283896,59017.0,59016.0,0.0008998]
[1724870895059,2.57181175,59017.0,59016.0,0.0008998]
[1724870895508,2.63354842,59017.0,59016.0,0.0008998]
[1724870895730,2.74036339,59017.0,59016.0,0.0008998]
[1724870895936,2.79085404,59017.0,59016.0,0.0008998]
[1724870896374,2.79085293,59017.0,59016.0,0.0008998]
[1724870896591,2.57181175,59017.0,59016.0,0.0008998]
[1724870896818,2.57381175,59017.0,59016.0,0.0008998]
[1724870897030,2.57752641,59017.0,59016.0,0.0008998]
[1724870897239,2.64200011,59017.0,59016.0,0.0008998]
[1724870897712,2.58952641,59017.0,59016.0,0.0008998]
[1724870897927,2.57752641,59017.0,59016.0,0.0008998]
[1724870898133,2.58952641,59017.0,59016.0,0.0008998]
[1724870898350,2.08452641,59017.0,59016.0,0.0008998]
[1724870898580,1.35978505,59017.0,59016.0,0.0008998]
[1724870899047,1.37378505,59017.0,59016.0,0.0008998]
[1724870900197,1.35978505,59017.0,59016.0,0.0008998]
[1724870900660,1.37378505,59017.0,59016.0,0.0008998]
[1724870901097,1.35978505,59017.0,59016.0,0.0008998]
[1724870901409,1.37178505,59017.0,59016.0,0.0008998]
[1724870902485,1.34878505,59017.0,59016.0,0.0008998]
[1724870902736,1.00990005,59017.0,59016.0,0.0008998]
[1724870903645,0.99150365,59017.0,59016.0,0.0008998]
[1724870903881,1.00350365,59017.0,59016.0,0.0008998]
[1724870904107,1.00350365,59017.0,59016.0,0.0829998]
[1724870904108,0.56461865,59017.0,59016.0,0.0829998]
[1724870904341,0.04429165,59017.0,59016.0,0.3136448]
[1724870904581,0.02657699,59017.0,59016.0,0.15818316]
[1724870904812,0.53790399,59017.0,59016.0,0.15818316]
[1724870905031,0.53790399,59017.0,59016.0,0.1441998]
[1724870905298,0.19601899,59017.0,59016.0,0.15818316]
[1724870905538,0.02657699,59017.0,59016.0,0.32762816]
[1724870905760,0.02657699,59017.0,59016.0,0.15818316]
[1724870906401,0.01771466,59022.0,59017.0,0.0777]
[1724870906621,0.01771466,59022.0,59021.0,0.0625]
[1724870906835,0.01771466,59022.0,59021.0,0.58473207]
[1724870907296,0.169411,59028.0,59024.0,0.169421]
[1724870907509,0.338811,59030.0,59026.0,0.0614]
[1724870907510,0.18712066,59030.0,59026.0,0.0614]
[1724870907739,0.169413,59027.0,59026.0,0.0614]
[1724870908413,0.847067,59027.0,59026.0,0.0614]
[1724870909642,0.847067,59027.0,59026.0,0.1381]
[1724870910572,0.848067,59027.0,59026.0,0.1431]
[1724870911028,0.169413,59027.0,59026.0,0.1381]
[1724870911211,0.50824,59027.0,59026.0,0.1401]
[1724870911464,0.847067,59027.0,59026.0,0.1401]
[1724870911676,0.50824,59027.0,59026.0,0.1401]
[1724870911892,0.50824,59027.0,59026.0,0.1381]
[1724870912316,0.50824,59027.0,59026.0,0.1391]
[1724870912525,0.01771466,59030.0,59026.0,0.1391]
[1724870912736,0.169413,59027.0,59026.0,0.1391]
[1724870912947,0.5348117,59027.0,59026.0,0.1391]
[1724870913388,0.5348117,59027.0,59026.0,0.1381]
[1724870913833,0.5358117,59027.0,59026.0,0.1431]
[1724870914328,0.5348117,59027.0,59026.0,0.1381]
[1724870914565,0.5348117,59027.0,59026.0,0.1431]
[1724870914798,0.5358117,59027.0,59026.0,0.1431]
[1724870915777,0.1969847,59027.0,59026.0,0.15701178]
[1724870916005,0.5358117,59027.0,59026.0,0.15701178]
[1724870920046,0.0275717,59027.0,59026.0,0.15701178]
[1724870920264,0.0275717,59027.0,59026.0,0.32642778]
[1724870920497,0.0275717,59027.0,59026.0,0.66616058]
[1724870920717,0.0283897,59027.0,59026.0,0.66616058]
[1724870920936,0.0283897,59027.0,59026.0,1.00499358]
[1724870922949,0.0283897,59027.0,59026.0,1.6325894]
[1724870924049,0.0283897,59027.0,59026.0,1.2937564]
[1724870924487,0.0283897,59027.0,59026.0,1.6325894]
[1724870924917,0.0283897,59027.0,59026.0,1.2937564]
[1724870925158,0.0283897,59027.0,59026.0,0.7855074]
[1724870925399,0.1978027,59027.0,59026.0,0.7855074]
[1724870925664,0.0283897,59027.0,59026.0,0.7855074]
[1724870926993,0.1978027,59027.0,59026.0,0.7855074]
[1724870927668,0.001818,59027.0,59026.0,0.7855074]
[1724870928769,0.001818,59027.0,59026.0,0.15791158]
[1724870929682,0.001818,59027.0,59026.0,0.66616058]
[1724870929905,0.001818,59027.0,59026.0,1.9714224]
[1724870930828,0.000818,59027.0,59026.0,1.9664224]
[1724870931035,0.001818,59027.0,59026.0,1.9724224]
[1724870932680,0.000818,59027.0,59026.0,1.9664224]
[1724870933586,0.001818,59027.0,59026.0,1.9784224]
[1724870934088,0.001818,59027.0,59026.0,2.3172554]
[1724870934820,0.001818,59027.0,59026.0,2.3192554]
[1724870935275,0.001818,59027.0,59026.0,2.3242554]
[1724870935516,0.000818,59040.0,59039.0,1.328156]
[1724870935742,0.000818,59040.0,59039.0,1.95393382]
[1724870935966,0.000818,59040.0,59039.0,1.96775244]
[1724870937087,0.000818,59040.0,59039.0,1.97775244]
[1724870937773,0.02738002,59040.0,59039.0,1.97775244]
[1724870939666,0.02738002,59040.0,59039.0,1.63899344]
[1724870942069,0.000818,59040.0,59039.0,1.30023444]
[1724870942558,0.000818,59040.0,59039.0,0.02381862]
[1724870943023,0.000818,59040.0,59039.0,0.36257762]
[1724870943246,0.000818,59040.0,59039.0,0.66465662]
[1724870943971,0.000818,59040.0,59039.0,0.66965662]
[1724870944633,0.170194,59040.0,59039.0,0.01881862]
[1724870944872,0.9087,59040.0,59039.0,0.01881862]
[1724870945088,0.9087,59040.0,59039.0,0.01381862]
[1724870945313,0.169385,59037.0,59033.0,0.169394]
[1724870945739,0.169391,59035.0,59034.0,0.01378332]
[1724870946230,0.169392,59035.0,59031.0,0.70537782]
[1724870946435,0.508175,59035.0,59034.0,0.01378398]
[1724870946657,0.508175,59035.0,59027.0,0.3397228]
[1724870946658,0.169397,59033.0,59029.0,0.169407]
[1724870946884,0.169399,59032.0,59029.0,0.169407]
[1724870947114,0.508184,59034.0,59029.0,0.169407]
[1724870947429,0.338788,59034.0,59029.0,0.169407]
[1724870947539,0.02656757,59032.0,59028.0,0.62577782]
[1724870947755,0.02656757,59032.0,59031.0,0.508207]
[1724870947971,0.02656757,59032.0,59031.0,0.986512]
[1724870948397,0.000818,59040.0,59039.0,0.169379]
[1724870948609,0.000818,59040.0,59039.0,0.1421]
[1724870948821,0.000818,59040.0,59039.0,0.0796]
[1724870950596,0.33872,59046.0,59039.0,0.248979]
[1724870950799,0.169369,59043.0,59039.0,0.248979]
[1724870951644,0.169369,59043.0,59039.0,0.253979]
[1724870951843,0.01771466,59046.0,59039.0,0.0846]
[1724870952046,0.01771466,59046.0,59043.0,0.169366]
[1724870952242,0.18707366,59046.0,59044.0,0.01377931]
[1724870952456,0.18707366,59046.0,59042.0,0.16937]
[1724870952666,0.18707366,59046.0,59043.0,0.01378052]
[1724870953037,0.18707466,59046.0,59043.0,0.01378052]
[1724870953514,0.01771466,59046.0,59043.0,0.18314752]
[1724870955027,0.01871466,59046.0,59043.0,0.18314752]
[1724870955892,0.01871466,59046.0,59045.0,0.584786]
[1724870956375,0.01871466,59046.0,59045.0,0.6622649]
[1724870956580,0.01871466,59046.0,59045.0,0.3235409]
[1724870956993,0.01871466,59046.0,59045.0,0.6622649]
[1724870957203,0.001,59046.0,59045.0,1.62676672]
[1724870957658,0.000818,59049.0,59048.0,0.169353]
[1724870957981,0.000818,59049.0,59048.0,0.18312634]
[1724870958185,0.03399302,59049.0,59048.0,0.52183334]
[1724870958397,0.02737916,59049.0,59048.0,0.52083334]
[1724870958816,0.02737916,59049.0,59048.0,0.85954034]
[1724870959072,0.02737916,59049.0,59048.0,0.93994034]
[1724870960368,0.02737916,59049.0,59048.0,0.26252634]
[1724870961191,0.02737916,59049.0,59048.0,0.60123334]
[1724870962460,0.000818,59049.0,59048.0,0.60123334]
[1724870963707,0.05070335,59057.0,59048.0,0.09417334]
[1724870963926,0.169324,59059.0,59052.0,0.338683]
[1724870964130,0.05070335,59060.0,59054.0,0.169335]
[1724870964131,0.169325,59058.0,59054.0,0.169335]
[1724870964336,0.169325,59058.0,59053.0,0.338676]
[1724870964337,0.05070335,59060.0,59053.0,0.35241671]
[1724870964540,0.22001435,59063.0,59056.0,0.0642]
[1724870964736,0.169311,59063.0,59057.0,0.338653]
[1724870964975,0.169309,59064.0,59060.0,0.169318]
[1724870965163,0.169309,59064.0,59061.0,0.169315]
[1724870965299,0.169308,59064.0,59061.0,0.01372758]
[1724870965505,0.02655655,59066.0,59063.0,0.169307]
[1724870965721,0.02655655,59066.0,59063.0,0.164307]
[1724870965928,0.02655655,59066.0,59065.0,0.169305]
[1724870966374,0.02655655,59066.0,59065.0,0.52162854]
[1724870968736,0.02655655,59066.0,59065.0,0.92053854]
[1724870969152,0.02655655,59066.0,59065.0,0.58192854]
[1724870969355,0.02655655,59066.0,59065.0,0.52162854]
[1724870970358,0.02655655,59066.0,59065.0,1.56421636]
[1724870970536,0.02655655,59066.0,59065.0,1.96312636]
[1724870971151,0.00165978,59066.0,59065.0,1.96312636]
[1724870971371,0.000818,59068.0,59065.0,1.96312636]
[1724870971372,0.000818,59068.0,59067.0,0.846495]
[1724870971597,0.000818,59068.0,59067.0,0.929395]
[1724870971801,0.000818,59068.0,59067.0,1.34818335]
[1724870972267,0.000818,59068.0,59067.0,2.31255917]
[1724870972728,0.000818,59068.0,59067.0,2.32355917]
[1724870973281,0.000818,59068.0,59067.0,2.32555917]
[1724870973716,0.000818,59068.0,59067.0,2.33055917]
[1724870974387,0.000818,59068.0,59067.0,2.31955917]
[1724870974807,0.000818,59068.0,59067.0,2.33055917]
[1724870975036,0.027365,59068.0,59067.0,2.32855917]
[1724870975281,0.00818,59079.0,59078.0,0.590702]
[1724870975526,0.00818,59079.0,59078.0,1.82432458]
[1724870975927,0.00818,59079.0,59078.0,1.90722458]
[1724870976147,0.00818,59079.0,59078.0,1.97372458]
[1724870976839,0.03472553,59079.0,59078.0,1.97372458]
[1724870977860,0.03472553,59079.0,59078.0,1.97772458]
[1724870978172,0.00818,59085.0,59084.0,0.846252]
[1724870978382,0.00818,59085.0,59084.0,0.926652]
[1724870978827,0.00818,59085.0,59084.0,0.94019372]
[1724870979481,0.00818,59085.0,59084.0,1.56597154]
[1724870980113,0.00818,59085.0,59084.0,1.96797254]
[1724870981154,0.00818,59085.0,59084.0,1.97297254]
[1724870981379,0.00818,59085.0,59084.0,1.63447154]
[1724870981595,0.00818,59085.0,59084.0,1.62947154]
[1724870981776,0.00818,59085.0,59084.0,1.64147154]
[1724870982260,0.00818,59085.0,59084.0,1.23947054]
[1724870982462,0.177427,59085.0,59084.0,0.63931954]
[1724870982672,0.177427,59085.0,59084.0,0.65131954]
[1724870983614,0.515922,59085.0,59084.0,0.65131954]
[1724870984082,0.515922,59085.0,59084.0,0.63931954]
[1724870984513,0.515922,59085.0,59084.0,0.65131954]
[1724870984952,0.515922,59085.0,59084.0,0.63931954]
[1724870985177,0.515922,59085.0,59084.0,0.64531954]
[1724870987616,0.515922,59085.0,59084.0,0.63931954]
[1724870988065,0.515922,59085.0,59084.0,0.64431954]
[1724870988066,0.854417,59085.0,59084.0,0.64431954]
[1724870988959,0.515922,59085.0,59084.0,0.64431954]
[1724870990103,0.00818,59085.0,59084.0,0.64431954]
[1724870990300,0.00818,59085.0,59084.0,1.62787154]
[1724870990715,0.02589466,59085.0,59084.0,1.62787154]
[1724870991124,0.02589466,59085.0,59084.0,1.62287154]
[1724870991568,0.02589466,59085.0,59084.0,1.63287154]
[1724870991788,0.02589466,59085.0,59084.0,1.29437054]
[1724870993777,0.02589466,59085.0,59084.0,1.63287154]
[1724870994909,0.02589466,59085.0,59084.0,1.23347054]
[1724870995586,0.02589466,59085.0,59084.0,1.57197154]
[1724870997607,0.05243777,59085.0,59084.0,1.57197154]
[1724871000548,0.64227977,59085.0,59084.0,0.64931954]
[1724871001024,0.30378477,59085.0,59084.0,0.64931954]
[1724871001273,0.05243777,59085.0,59084.0,0.64931954]
[1724871001519,0.22168477,59085.0,59084.0,0.63931954]
[1724871002009,0.05243777,59085.0,59084.0,0.63931954]
[1724871002260,0.05243777,59085.0,59084.0,0.80856954]
[1724871002476,0.05243777,59085.0,59084.0,0.63931954]
[1724871003147,0.05243777,59085.0,59084.0,1.14707054]
[1724871003379,0.05243777,59085.0,59084.0,1.62157154]
[1724871004052,0.05243777,59085.0,59084.0,1.62557154]
[1724871004793,0.05243777,59085.0,59084.0,1.96407254]
[1724871004994,0.000819,59093.0,59092.0,0.169227]
[1724871005220,0.000819,59093.0,59092.0,1.60791482]
[1724871005455,0.000819,59093.0,59092.0,2.18942618]
[1724871005704,0.000819,59093.0,59092.0,2.54139059]
[1724871005935,0.000819,59093.0,59092.0,2.65139059]
[1724871006369,0.000819,59093.0,59092.0,2.64139059]
[1724871006609,0.000819,59093.0,59092.0,2.65139059]
[1724871007053,0.000819,59093.0,59092.0,2.65439059]
[1724871007275,0.00818,59102.0,59100.0,1.184431]
[1724871007511,0.000818,59104.0,59100.0,1.332131]
[1724871007731,0.000818,59104.0,59103.0,0.91218]
[1724871007954,0.000818,59104.0,59103.0,0.99368]
[1724871008180,0.000818,59104.0,59103.0,1.34552982]
[1724871009123,0.000818,59104.0,59103.0,1.97130764]
[1724871010304,0.000818,59104.0,59103.0,2.32869964]
[1724871010558,0.000818,59104.0,59103.0,1.64691564]
[1724871010795,0.000818,59104.0,59103.0,1.14682364]
[1724871011020,0.000818,59104.0,59103.0,1.48521564]
[1724871011344,0.000818,59104.0,59103.0,1.91300764]
[1724871011720,0.000818,59104.0,59103.0,1.89900764]
[1724871012120,0.000818,59104.0,59103.0,1.90500764]
[1724871013125,0.000818,59104.0,59103.0,0.81443164]
[1724871013366,0.000818,59104.0,59103.0,1.14682364]
[1724871013581,0.000818,59104.0,59103.0,1.15982364]
[1724871013879,0.000818,59104.0,59103.0,1.49821564]
[1724871014085,0.000818,59104.0,59103.0,1.48521564]
[1724871014539,0.000818,59104.0,59103.0,1.49321564]
[1724871014977,0.000818,59104.0,59103.0,1.48521564]
[1724871015422,0.000818,59104.0,59103.0,1.49421564]
[1724871016272,0.000818,59104.0,59103.0,1.91120764]
[1724871016591,0.000818,59104.0,59103.0,1.97640764]
[1724871017692,0.02735139,59104.0,59103.0,1.96740764]
[1724871017919,0.00818,59109.0,59108.0,1.18427]
[1724871018133,0.00818,59109.0,59108.0,1.88864782]
[1724871018347,0.00818,59109.0,59108.0,1.90205497]
[1724871019048,0.00818,59109.0,59108.0,1.56369197]
[1724871019269,0.00818,59109.0,59108.0,0.80836597]
[1724871019518,0.00818,59109.0,59108.0,1.14672897]
[1724871019751,0.00818,59109.0,59108.0,0.63918497]
[1724871020654,0.178358,59109.0,59108.0,0.64918497]
[1724871020895,0.590815,59109.0,59108.0,0.02240715]
[1724871021121,1.330329,59109.0,59108.0,0.02240715]
[1724871021362,1.34804366,59109.0,59108.0,0.01640715]
[1724871021570,0.845937,59106.0,59105.0,0.62577782]
[1724871021778,0.921037,59106.0,59105.0,0.62577782]
[1724871022697,0.582662,59106.0,59105.0,0.62577782]
[1724871022927,0.60919876,59106.0,59105.0,0.62577782]
[1724871023152,0.60919876,59106.0,59105.0,0.63862715]
[1724871024069,0.10263676,59106.0,59105.0,0.01284933]
[1724871024317,0.10563676,59106.0,59105.0,0.01284933]
[1724871024533,0.10563676,59106.0,59103.0,0.169193]
[1724871024753,0.10463676,59106.0,59105.0,0.01284933]
[1724871024969,0.27682476,59106.0,59104.0,0.01285054]
[1724871025211,0.27082376,59106.0,59105.0,0.01284933]
[1724871025425,1.01187376,59106.0,59105.0,0.01484933]
[1724871025646,1.01187376,59106.0,59105.0,0.002]
[1724871025886,1.01187376,59106.0,59105.0,0.01485417]
[1724871026110,1.01187376,59106.0,59105.0,0.002]
[1724871026545,1.01169416,59106.0,59105.0,0.002]
[1724871026734,0.1692,59102.0,59099.0,0.62577782]
[1724871026979,0.1692,59102.0,59100.0,0.01286024]
[1724871027645,0.02835376,59106.0,59100.0,0.09296024]
[1724871027863,0.02935376,59106.0,59104.0,0.16919]
[1724871028082,0.02935376,59106.0,59101.0,0.338401]
[1724871028337,0.02935376,59106.0,59105.0,0.01285795]
[1724871028555,0.02935376,59106.0,59099.0,0.62577782]
[1724871028556,0.169201,59101.0,59099.0,0.62577782]
[1724871028791,0.338394,59103.0,59099.0,0.62577782]
[1724871029035,0.507591,59103.0,59099.0,0.62577782]
[1724871029267,0.507613,59100.0,59099.0,0.62577782]
[1724871029501,0.507613,59100.0,59093.0,0.4758]
[1724871029502,0.169219,59095.0,59093.0,0.62577782]
[1724871029722,0.169219,59095.0,59090.0,0.169231]
[1724871029723,0.233519,59095.0,59091.0,0.79500682]
[1724871029936,0.34065724,59095.0,59091.0,0.79500682]
[1724871030367,0.17143824,59095.0,59092.0,0.169227]
[1724871030801,0.17143824,59095.0,59091.0,0.96423782]
[1724871030802,0.17143824,59095.0,59091.0,0.79500782]
[1724871031014,0.17143824,59095.0,59083.0,0.338506]
[1724871031015,0.16923,59091.0,59090.0,0.62577782]
[1724871031239,0.652591,59091.0,59090.0,0.62577782]
[1724871031467,0.652591,59091.0,59079.0,0.1701607]
[1724871031468,0.507699,59090.0,59079.0,0.1701607]
[1724871031687,0.507699,59090.0,59079.0,0.0008987]
[1724871031688,0.55824152,59090.0,59079.0,0.0008987]
[1724871031902,0.89670752,59090.0,59079.0,0.1701607]
[1724871032335,0.89670752,59090.0,59079.0,0.0008987]
[1724871032565,0.89670752,59090.0,59079.0,0.1701617]
[1724871032800,0.89670752,59090.0,59081.0,0.169258]
[1724871033244,0.89870752,59090.0,59081.0,0.169258]
[1724871033676,0.89670752,59090.0,59081.0,0.169258]
[1724871034114,0.90570752,59090.0,59089.0,0.00120372]
[1724871034533,0.89870752,59090.0,59089.0,0.00020372]
[1724871034751,0.90170752,59090.0,59089.0,0.00020372]
[1724871035428,0.85766923,59090.0,59089.0,0.00020372]
[1724871036104,0.85566923,59090.0,59089.0,0.00020372]
[1724871036313,0.90721175,59090.0,59089.0,0.00020372]
[1724871036530,0.85666923,59090.0,59089.0,0.00020372]
[1724871036766,0.87438389,59090.0,59089.0,0.00020372]
[1724871036976,0.87338389,59090.0,59089.0,0.00020372]
[1724871039839,0.87338389,59090.0,59089.0,0.00110242]
[1724871042643,0.52841366,59090.0,59089.0,0.00110242]
[1724871043162,0.18994766,59090.0,59089.0,0.01627341]
[1724871043430,0.02071466,59090.0,59089.0,0.01628783]
[1724871043641,0.01771466,59090.0,59089.0,0.01628783]
[1724871044070,0.01771466,59090.0,59089.0,0.01828783]
[1724871044296,0.01771466,59090.0,59089.0,0.86346783]
[1724871044517,0.01771466,59090.0,59089.0,1.33843983]
[1724871044743,0.01771466,59090.0,59089.0,1.96821765]
[1724871044959,0.02653824,59095.0,59094.0,0.846107]
[1724871045174,0.02653824,59095.0,59094.0,1.32105]
[1724871045407,0.02653824,59095.0,59094.0,2.30044719]
[1724871045629,0.000817,59104.0,59103.0,0.98248]
[1724871045883,0.000817,59104.0,59103.0,1.320872]
[1724871046105,0.000817,59104.0,59103.0,1.33600627]
[1724871046785,0.000817,59104.0,59103.0,1.33500627]
[1724871047240,0.000817,59104.0,59103.0,1.34700627]
[1724871047461,0.001817,59104.0,59103.0,1.35900627]
[1724871048152,0.001817,59104.0,59103.0,1.00861427]
[1724871048393,0.000817,59104.0,59103.0,1.00861427]
[1724871048614,0.001817,59104.0,59103.0,1.01061427]
[1724871048841,0.001817,59104.0,59103.0,1.02461427]
[1724871049089,0.001817,59104.0,59103.0,1.36300627]
[1724871049318,0.001817,59104.0,59103.0,1.01061427]
[1724871049780,0.001817,59104.0,59103.0,1.00861427]
[1724871049996,0.000817,59104.0,59103.0,1.00861427]
[1724871050237,0.001817,59104.0,59103.0,1.00861427]
[1724871050455,0.001817,59104.0,59103.0,1.01061427]
[1724871050662,0.002817,59104.0,59103.0,0.11953427]
[1724871050900,0.002817,59104.0,59103.0,0.91450809]
[1724871052247,0.002817,59104.0,59103.0,0.66891209]
[1724871052248,0.17201,59104.0,59103.0,0.66891209]
[1724871052682,0.002817,59104.0,59103.0,0.66891209]
[1724871052905,0.02935191,59104.0,59103.0,0.65491209]
[1724871053157,0.02735191,59104.0,59103.0,1.62429209]
[1724871053389,0.02735191,59104.0,59103.0,1.63829209]
[1724871053390,0.02835191,59104.0,59103.0,1.63829209]
[1724871054103,0.02835191,59104.0,59103.0,1.63129209]
[1724871054104,0.02735191,59104.0,59103.0,1.63129209]
[1724871054343,0.02735191,59104.0,59103.0,1.63929209]
[1724871054587,0.02835191,59104.0,59103.0,1.63929209]
[1724871054831,0.02835191,59104.0,59103.0,1.63229209]
[1724871055053,0.02835191,59104.0,59103.0,1.63929209]
[1724871056208,0.02835191,59104.0,59103.0,1.63229209]
[1724871056461,0.02835191,59104.0,59103.0,1.64129209]
[1724871058839,0.02835191,59104.0,59103.0,1.97968409]
[1724871062106,0.00818,59109.0,59108.0,0.845907]
[1724871062369,0.00818,59109.0,59108.0,2.04810418]
[1724871062628,0.00818,59109.0,59108.0,2.54381995]
[1724871063102,0.00817,59126.0,59125.0,0.927365]
[1724871063337,0.00817,59126.0,59125.0,1.61864282]
[1724871063569,0.0004,59139.0,59138.0,0.588088]
[1724871063795,0.0004,59139.0,59138.0,1.61775782]
[1724871064010,0.0004,59139.0,59138.0,1.97096507]
[1724871064234,0.0004,59139.0,59138.0,1.96996507]
[1724871064483,0.0004,59139.0,59138.0,1.29358107]
[1724871064743,0.0004,59139.0,59138.0,0.81988907]
[1724871064989,0.0014,59139.0,59138.0,0.65079307]
[1724871065204,0.0014,59139.0,59138.0,0.82188907]
[1724871065456,0.0014,59139.0,59138.0,1.83646507]
[1724871065683,0.0014,59139.0,59138.0,1.90446507]
[1724871065891,0.0014,59139.0,59138.0,1.56627307]
[1724871066110,0.0014,59139.0,59138.0,1.57427307]
[1724871066595,0.0014,59139.0,59138.0,1.58627307]
[1724871067035,0.0004,59139.0,59138.0,1.57427307]
[1724871067277,0.0004,59139.0,59138.0,1.56627307]
[1724871067497,0.0004,59139.0,59138.0,1.92246507]
[1724871067716,0.0004,59139.0,59138.0,1.91346507]
[1724871068188,0.0004,59139.0,59138.0,1.91646507]
[1724871068403,0.0004,59139.0,59138.0,1.92946507]
[1724871068858,0.0004,59139.0,59138.0,1.91646507]
[1724871069132,0.02691607,59139.0,59138.0,1.93046507]
[1724871069598,0.02691607,59139.0,59138.0,1.58027307]
[1724871070050,0.02691607,59139.0,59138.0,0.65479307]
[1724871070278,0.02691607,59139.0,59138.0,0.66879307]
[1724871071165,0.02691607,59139.0,59138.0,0.83788907]
[1724871071610,0.02691607,59139.0,59138.0,1.17608107]
[1724871071826,0.02691607,59139.0,59138.0,0.83788907]
[1724871072078,0.16908,59144.0,59140.0,0.16909]
[1724871072289,0.065,59147.0,59139.0,0.00338161]
[1724871072525,0.000995,59150.0,59138.0,0.66279307]
[1724871072526,0.000995,59150.0,59141.0,0.35305807]
[1724871072770,0.000995,59150.0,59140.0,0.0831]
[1724871072771,0.000995,59150.0,59146.0,0.169071]
[1724871073005,0.000995,59150.0,59147.0,0.16907]
[1724871073241,0.000995,59150.0,59149.0,0.169064]
[1724871073686,0.000995,59150.0,59149.0,0.85919807]
[1724871074418,0.000995,59150.0,59149.0,0.52106907]
[1724871074647,0.000995,59150.0,59149.0,1.14684689]
[1724871074869,0.000995,59150.0,59149.0,1.14984689]
[1724871075806,0.000995,59150.0,59149.0,1.15184689]
[1724871076477,0.000995,59150.0,59149.0,0.81371789]
[1724871077403,0.000995,59150.0,59149.0,1.15184689]
[1724871077645,0.000995,59150.0,59149.0,0.64565389]
[1724871077865,0.19657061,59150.0,59149.0,0.64565389]
[1724871078096,0.02750961,59150.0,59149.0,0.64565389]
[1724871078595,0.87281661,59150.0,59149.0,0.64565389]
[1724871078801,0.59839361,59150.0,59149.0,0.64565389]
[1724871079025,0.02750961,59150.0,59149.0,0.63077782]
[1724871079320,0.02750961,59150.0,59149.0,1.13797082]
[1724871079533,0.02750961,59150.0,59149.0,1.91040869]
[1724871079763,0.02750961,59150.0,59149.0,1.57027969]
[1724871079997,0.03150961,59150.0,59149.0,1.22915069]
[1724871080240,0.02750961,59150.0,59149.0,1.22915069]
[1724871080457,0.02850961,59150.0,59149.0,1.22915069]
[1724871080674,0.02850961,59150.0,59149.0,1.56927969]
[1724871080902,0.02750961,59150.0,59149.0,1.56927969]
[1724871081821,0.02750961,59150.0,59149.0,1.56727969]
[1724871082053,0.02750961,59150.0,59149.0,1.57427969]
[1724871082501,0.02750961,59150.0,59149.0,1.56727969]
[1724871082712,0.02750961,59150.0,59149.0,1.56927969]
[1724871082923,0.02750961,59150.0,59149.0,1.56727969]
[1724871083148,0.02750961,59150.0,59149.0,1.57427969]
[1724871083368,0.02750961,59150.0,59149.0,1.58327969]
[1724871084222,0.02750961,59150.0,59149.0,1.57627969]
[1724871084416,0.02750961,59150.0,59149.0,1.23815069]
[1724871084690,0.53469361,59150.0,59149.0,0.65865769]
[1724871084898,0.19657061,59150.0,59149.0,0.65865769]
[1724871085140,0.19657061,59150.0,59149.0,0.64965769]
[1724871085376,0.02750961,59150.0,59149.0,0.89592169]
[1724871085602,0.02750961,59150.0,59149.0,0.88692169]
[1724871085843,0.02750961,59150.0,59149.0,0.89592169]
[1724871086063,0.02750961,59150.0,59149.0,0.72685769]
[1724871086312,0.02750961,59150.0,59149.0,0.88692169]
[1724871086524,0.02750961,59150.0,59149.0,0.88782039]
[1724871086952,0.02832661,59150.0,59149.0,0.88782039]
[1724871087177,0.02832661,59150.0,59149.0,1.22594939]
[1724871087623,0.02832661,59150.0,59149.0,1.22694939]
[1724871087833,0.02832661,59150.0,59149.0,0.88882039]
[1724871088050,0.02832661,59150.0,59149.0,0.88982039]
[1724871088517,0.02832661,59150.0,59149.0,1.29484939]
[1724871088764,0.02832661,59150.0,59149.0,1.63797839]
[1724871089013,0.02832661,59150.0,59149.0,1.62797839]
[1724871089249,0.02832661,59150.0,59149.0,1.63397839]
[1724871089461,0.02832661,59150.0,59149.0,1.63997839]
[1724871089669,0.02832661,59150.0,59149.0,1.63397839]
[1724871090740,0.02832661,59150.0,59149.0,1.62797839]
[1724871091161,0.02832661,59150.0,59149.0,1.62897839]
[1724871091384,0.001812,59150.0,59149.0,1.62897839]
[1724871091596,0.001812,59150.0,59149.0,1.63397839]
[1724871092066,0.001812,59150.0,59149.0,1.63497839]
[1724871092332,0.001812,59150.0,59149.0,1.64497839]
[1724871092561,0.001812,59150.0,59149.0,1.63797839]
[1724871092773,0.001812,59150.0,59149.0,1.64997839]
[1724871092987,0.02832502,59150.0,59149.0,1.64997839]
[1724871093196,0.02832502,59150.0,59149.0,1.63997839]
[1724871093617,0.02832502,59150.0,59149.0,1.97810739]
[1724871094294,0.02832502,59150.0,59149.0,1.96610739]
[1724871094514,0.02832502,59150.0,59149.0,1.97710739]
[1724871094738,0.02832502,59150.0,59149.0,1.96610739]
[1724871094958,0.02832502,59150.0,59149.0,1.63997839]
[1724871095183,0.02832502,59150.0,59149.0,1.65397839]
[1724871095666,0.02832502,59150.0,59149.0,1.64197839]
[1724871095925,0.02832502,59150.0,59149.0,1.25394939]
[1724871096358,0.02832502,59150.0,59149.0,1.59207839]
[1724871096820,0.02832502,59150.0,59149.0,1.93020739]
[1724871097489,0.02832502,59150.0,59149.0,1.59207839]
[1724871097969,0.02832502,59150.0,59149.0,1.93020739]
[1724871100526,0.02832502,59150.0,59149.0,1.99580739]
[1724871100994,0.0369,59158.0,59151.0,0.0806]
[1724871101272,0.0369,59158.0,59157.0,1.56754636]
[1724871101740,0.0369,59158.0,59157.0,1.92007906]
[1724871101945,0.0369,59158.0,59157.0,1.58199606]
[1724871102165,0.0369,59158.0,59157.0,1.3439397]
[1724871102848,0.0369,59158.0,59157.0,1.3549397]
[1724871103801,0.0004,59159.0,59157.0,1.1858987]
[1724871104047,0.00817,59166.0,59165.0,0.169018]
[1724871104305,0.00817,59166.0,59165.0,1.6228494]
[1724871104508,0.00817,59166.0,59165.0,1.97530274]
[1724871105459,0.0004,59179.0,59178.0,1.18287]
[1724871105725,0.0004,59179.0,59178.0,1.95724782]
[1724871105940,0.0004,59179.0,59178.0,2.31159805]
[1724871106157,0.0004,59179.0,59178.0,2.31659805]
[1724871106648,0.0004,59179.0,59178.0,2.31459805]
[1724871107174,0.0004,59179.0,59178.0,1.97163505]
[1724871107643,0.0004,59179.0,59178.0,1.63367205]
[1724871107879,0.0004,59179.0,59178.0,1.58117205]
[1724871108295,0.0004,59179.0,59178.0,1.58017205]
[1724871108504,0.0004,59179.0,59178.0,1.56717205]
[1724871108748,0.0004,59179.0,59178.0,1.92413505]